Cogmind - Beta 11 X8 *** ADVENTURER MODE // 2021.10.26 @ 21:10:23 Player: Nomiddlename303 Result: Self-destructed Performance ------------- Evolutions (4) 2000 Regions Visited (6) 1200 Robots Destroyed (163) 815 Value Destroyed (5612) 5612 Prototype IDs (13) 260 Alien Tech Used (0) 0 Bonus (67) 67 TOTAL SCORE: 9954 Bonus ------- Follower Combat Kills 67 Cogmind --------- Core Integrity 667/850 Matter 300/300 Energy 23/100 System Corruption 5% Temperature Cool (0) Movement Treading (170) Location -6/Factory Parts ------- > --- POWER (1) -------- (None) > --- PROPULSION (5) --- Armored Treads Armored Treads > --- UTILITY (6) ------ Improved Cooling System Large Storage Unit Core Analyzer Weapon Cycler Thermal Shield > --- WEAPON (3) ------- Heavy Ion Cannon Mini Assault Cannon > --- INVENTORY (15) --- Micro Fission Core Armored Treads Cooling System Huge Storage Unit Large Matter Pod (150) Proton Cannon Long-range Missile Launcher Remote Datajack Power Sword Peak State ------------ > --- POWER ------------ Cold Fusion Reactor > --- PROPULSION ------- Armored Treads Armored Treads Armored Treads Armored Treads Improved Medium Treads > --- UTILITY ---------- Improved Cooling System Large Storage Unit Weapon Cycler Hardened Heavy Armor Plating Improved Medium Armor Plating > --- WEAPON ----------- Heavy Ion Cannon Mini Assault Cannon Power Sword > --- INVENTORY -------- Micro Fission Core Armored Treads Armored Treads Armored Treads Cooling System Improved Cooling System Huge Storage Unit Large Matter Pod Core Analyzer Proton Cannon Heavy Ion Cannon Cooled Particle Cannon Long-range Missile Launcher Remote Datajack [Rating: 63] Favorites ----------- Power Improved Deuterium Engine Engine Improved Deuterium Engine Power Core Micro Fission Core Reactor Cold Fusion Reactor Propulsion Armored Treads Treads Armored Treads Leg Aluminum Leg Utility Large Storage Unit Device Cooling System Storage Large Storage Unit Processor Target Analyzer Protection Hardened Heavy Armor Plating Weapon Heavy Ion Cannon Energy Gun Heavy Particle Gun Energy Cannon Heavy Ion Cannon Ballistic Gun Assault Rifle Ballistic Cannon Mini Assault Cannon Launcher Missile Launcher Special Weapon Remote Datajack Impact Weapon Hammer Slashing Weapon Power Sword Piercing Weapon Spear Special Melee Weapon Datajack Build | -11 -10 -10 -9 -8 -7 -6 ------- Run | Scr Mat Min Mat Mat Fac Fac Slots Evolved 8 | . . . 2 2 2 2 Power . | . . . . . . . Propulsion 3 | . . . 1 1 . 1 Utility 4 | . . . 1 1 1 1 Weapon 1 | . . . . . 1 . Parts Attached 153 | 6 21 8 27 7 52 32 Power 12 | 1 1 2 1 1 2 4 Engine 9 | 1 1 2 1 1 2 1 Core 2 | . . . . . . 2 Reactor 1 | . . . . . . 1 Propulsion 31 | 2 2 2 2 1 17 5 Treads 29 | . 2 2 2 1 17 5 Leg 2 | 2 . . . . . . Wheel . | . . . . . . . Hover . | . . . . . . . Flight . | . . . . . . . Utility 28 | 1 6 2 4 2 7 6 Device 12 | . 1 2 2 . 3 4 Storage 7 | 1 5 . . 1 . . Processor 2 | . . . . . 1 1 Hackware . | . . . . . . . Protection 7 | . . . 2 1 3 1 Artifact . | . . . . . . . Weapon 82 | 2 12 2 20 3 26 17 Energy Gun 15 | 1 . . 6 2 6 . Energy Cannon 22 | . . 1 4 . 8 9 Ballistic Gun 8 | 1 4 1 2 . . . Ballistic Cannon 7 | . 3 . . . 3 1 Launcher 9 | . 1 . 3 1 3 1 Special Weapon 2 | . . . . . 1 1 Impact Weapon 11 | . 3 . 4 . 4 . Slashing Weapon 5 | . . . . . . 5 Piercing Weapon 1 | . . . . . 1 . Special Melee Weapon 2 | . 1 . 1 . . . Unidentified Prototypes 6 | . . . 2 1 2 1 Parts Lost 10 | . . . . . 1 9 Power 1 | . . . . . . 1 Propulsion 2 | . . . . . . 2 Utility 4 | . . . . . . 4 Weapon 3 | . . . . . 1 2 Highest Loss Streak 7 | . . . . . 1 7 Average Slot Usage (%) 94 | . 94 100 99 100 89 92 Engine 7 | . 14 14 11 9 7 . Reactor 1 | . . . . . . 3 Treads 29 | . 15 28 33 36 29 32 Leg 1 | . 12 . . . . . Device 8 | . 9 14 11 9 7 7 Storage 9 | . 14 14 11 9 7 6 Processor 3 | . . . . . 7 4 Protection 9 | . . . 10 18 9 12 Energy Gun 4 | . 4 . 6 8 6 . Energy Cannon 7 | . . 8 10 9 4 10 Ballistic Gun 3 | . 17 6 2 . . . Ballistic Cannon 4 | . 2 13 . . 5 5 Naked Turns . | . . . . . . . Heaviest Build 80 | 10 31 33 48 59 71 80 Greatest Support 110 | 20 46 46 66 86 86 110 Greatest Overweight (x) 1 | . 1 . . . . . Average Overweight (x) . | . . . . . . . Largest Inventory Capacity 25 | 8 25 15 15 15 15 15 Average Capacity 14 | 7 12 15 15 15 15 15 Most Carried 15 | 6 15 15 15 15 15 15 Average Carried 14 | 2 11 14 14 14 14 14 Final Capacity 15 | 8 15 15 15 15 15 15 Final Carried 15 | 6 15 15 15 15 14 9 Class Distribution -------------------- 44% | Mutant 20% | Tank 16% | Scavenger-Gunner 12% | Scavenger-Mutant 4% | Scavenger-Tank Dominant Class ---------------- Mutant | -10/Materials Mutant | -10/Mines Mutant | -9/Materials Mutant | -8/Materials Scavenger-Gunner | -7/Factory Tank | -6/Factory Resources | -11 -10 -10 -9 -8 -7 -6 ----------- Run | Scr Mat Min Mat Mat Fac Fac Matter Collected 3487 | 225 381 300 350 156 988 1087 Remotely . | . . . . . . . Salvage Created 5456 | . 269 394 953 466 1096 2278 Parts 354 | . 20 24 75 22 75 138 Haulers Intercepted 9 | . . . 2 4 1 2 Recyclers Shooed 3 | . 1 . 1 . . 1 Parts Field Recycled . | . . . . . . . Retrieved Matter . | . . . . . . . Parts Self-Destructed . | . . . . . . . Prevented . | . . . . . . . Kills | -11 -10 -10 -9 -8 -7 -6 ------- Run | Scr Mat Min Mat Mat Fac Fac Combat Hostiles Destroyed 134 | . 10 12 28 10 31 43 Guns 23 | . 5 1 10 1 6 . Cannons 78 | . 2 11 8 2 15 40 AOE 31 | . 3 . 9 7 9 3 Classes Destroyed 18 | . 3 2 4 2 4 3 Worker 5 | . . 1 . . 1 3 Builder 3 | . . . . . 1 2 Tunneler 3 | . . . 1 1 . 1 Hauler 9 | . . . 2 4 1 2 Recycler 3 | . 1 . 1 . . 1 Mechanic 1 | . . . . . 1 . Operator 2 | . . . 1 . 1 . Watcher 3 | . . . 1 . . 2 Swarmer 42 | . 6 3 12 . 11 10 Saboteur 2 | . . . . . . 2 Grunt 41 | . 4 7 10 6 6 8 Brawler 3 | . . . . . . 3 Duelist 2 | . . . . 1 . 1 Sentry 14 | . . 2 6 2 1 3 Specialist 6 | . . . . . . 6 Hunter 5 | . . . . 1 3 1 Programmer 14 | . . . . . 6 8 Heavy 5 | . . . . . 4 1 Best Kill Streak 11 | . 6 4 5 10 8 11 Combat Bots Only 8 | . 6 3 4 7 6 8 Max Kills in Single Turn 4 | . 3 2 4 3 4 3 Gunslinging . | . . . . . . . Exploded 3 | . 3 . 3 2 3 3 Melee . | . . . . . . . Uniques/NPCs Destroyed . | . . . . . . . Combat | -11 -10 -10 -9 -8 -7 -6 -------- Run | Scr Mat Min Mat Mat Fac Fac Damage Taken 6122 | . 182 446 535 228 2086 2645 Core 531 | . 26 45 83 11 183 183 Absorbed by Shields . | . . . . . . . Core Remaining (%) 84 | 100 . 71 79 98 73 . Volleys Fired 276 | . 19 32 48 16 76 85 Largest 3 | . 2 2 2 2 3 3 Hottest 199 | . 60 103 143 143 199 178 Shots Fired 601 | . 35 64 90 26 159 227 Gun 158 | . 30 19 43 10 56 . Cannon 419 | . 4 45 42 10 96 222 Launcher 19 | . 1 . 5 6 6 1 Special 5 | . . . . . 1 4 Kinetic 209 | . 24 51 10 . 53 71 Thermal 367 | . 10 13 75 20 98 151 Explosive 19 | . 1 . 5 6 6 1 Electromagnetic 1 | . . . . . 1 . Robot Hit Streak 75 | . 15 19 75 11 16 41 Robot Miss Streak 2 | . 2 2 1 2 2 2 Penetration Max . | . . . . . . . Secondary Targets . | . . . . . . . Shots Hit Robots 461 | . 31 50 77 20 119 164 Core Hits 237 | . 17 19 38 30 55 78 Critical Kills . | . . . . . . . Critical Parts Destroyed . | . . . . . . . Critical Strikes 23 | . . 1 4 . 10 8 Burn 7 | . . . 4 . 3 . Blast 14 | . . 1 . . 7 6 Sever 2 | . . . . . . 2 Melee Attacks 90 | . 21 . 21 . 12 36 Impact 44 | . 18 . 19 . 7 . Slashing 36 | . . . . . . 36 Piercing 5 | . . . . . 5 . Sneak Attacks 9 | . 4 . 2 . 1 2 Combat Hostiles . | . . . . . . . Follow-up Attacks . | . . . . . . . Damage Inflicted 14736 | . 572 897 2312 1275 4379 5301 Guns 2272 | . 262 172 787 184 867 . Cannons 8688 | . 78 725 706 124 2679 4376 Explosions 2941 | . 169 . 819 967 751 235 Melee 835 | . 63 . . . 82 690 Ramming . | . . . . . . . Kinetic 3974 | . 266 649 98 . 1800 1161 Thermal 6986 | . 74 248 1395 308 1746 3215 Explosive 2941 | . 169 . 819 967 751 235 Electromagnetic . | . . . . . . . Impact 145 | . 63 . . . 82 . Slashing 690 | . . . . . . 690 Piercing . | . . . . . . . Highest Corruption 6 | . . . . . 6 5 Average Corruption 2 | . . . . . 2 2 Corruption Purged . | . . . . . . . Effects 35 | . . . . . 17 18 Message Errors 12 | . . . . . 8 4 Matter Fused 5 | . . . . . 2 3 Heat Flow Errors 5 | . . . . . 1 4 Energy Discharges 5 | . . . . . 1 4 Data Loss (minor) 7 | . . . . . 4 3 Data Loss (major) 1 | . . . . . 1 . Overload Shots 4 | . . . . . 1 3 Overflow Damage 451 | . 23 . 49 32 231 116 Projectiles 232 | . . . 23 . 160 49 Explosions 71 | . . . 26 32 9 4 Melee 148 | . 23 . . . 62 63 Knockbacks 22 | . 2 3 . . 9 8 Impact 1 | . 1 . . . . . Kinetic 19 | . 1 3 . . 8 7 Secondary 2 | . . . . . 1 1 Self-Inflicted Damage 94 | . . . 37 23 34 . Shots 4 | . . . 2 1 1 . Rammed . | . . . . . . . Targets Rammed . | . . . . . . . Kicked . | . . . . . . . Crushed . | . . . . . . . Highest Temperature 350 | . 36 63 277 180 350 218 Average Temperature 73 | . 20 31 97 60 108 54 Received Heat Transfer 1533 | . 78 318 228 72 330 507 Effects 1 | . . . . . 1 . Short Circuit 1 | . . . . . 1 . Siege Activations . | . . . . . . . Robots Corrupted . | . . . . . . . Combat Hostiles . | . . . . . . . Parts Fried 3 | . . . . . 3 . Impact Corruptions 3 | . 1 . . . 2 . Robots Melted 2 | . . . 1 . 1 . Combat Hostiles 2 | . . . 1 . 1 . Parts Melted 30 | . . 2 9 5 7 7 Heat Transferred 11048 | . 175 444 2775 555 3010 4089 Parts Sabotaged 2 | . . . . . . 2 Parts Stolen . | . . . . . . . Parts Stripped . | . . . . . . . Power Chain Reactions . | . . . . . . . Missiles Intercepted . | . . . . . . . Alert | -11 -10 -10 -9 -8 -7 -6 ------- Run | Scr Mat Min Mat Mat Fac Fac Peak Influence 394 | . 170 296 394 364 277 240 Initial 93 | . . 56 9 58 78 93 Average 116 | . 49 166 204 197 85 99 Maximum Alert Level 1 | . . 1 1 1 1 1 Low Security (%) 82 | 100 100 82 52 48 95 85 Level 1 17 | . . 17 47 51 4 14 Level 2 . | . . . . . . . Level 3 . | . . . . . . . Level 4 . | . . . . . . . Level 5 . | . . . . . . . High Security . | . . . . . . . Max Security . | . . . . . . . Squads Dispatched 29 | . . . 3 2 11 13 Investigation 2 | . . . . . 2 . Extermination 8 | . . . . . 2 6 Reinforcement 15 | . . . 3 . 6 6 Assault 1 | . . . . . 1 . Garrison 3 | . . . . 2 . 1 Intercept . | . . . . . . . Construction Impeded 1 | . . . . . . 1 Haulers Reinforced 1 | . . . . . . 1 Active Scanning Responses . | . . . . . . . Cargo Convoy Interrupts 2 | . . . . . 1 1 Stealth | -11 -10 -10 -9 -8 -7 -6 --------- Run | Scr Mat Min Mat Mat Fac Fac Distress Signals 5 | . 1 . 2 1 . 1 Communications Jammed . | . . . . . . . Distress Signals . | . . . . . . . Times Spotted 192 | . 21 16 38 12 44 61 Peak Tracking Total 14 | . 3 3 6 7 6 14 Tactical Retreats 5 | . 1 1 1 . 2 . Traps | -11 -10 -10 -9 -8 -7 -6 ------- Run | Scr Mat Min Mat Mat Fac Fac Traps Triggered 1 | . . . . . . 1 Indirectly . | . . . . . . . Trap Hack Attempts . | . . . . . . . Triggered . | . . . . . . . Disarmed . | . . . . . . . Reprogrammed . | . . . . . . . Reused . | . . . . . . . Traps Extracted . | . . . . . . . Installed . | . . . . . . . Triggered 2 | . . . . . 2 . Machines | -11 -10 -10 -9 -8 -7 -6 ---------- Run | Scr Mat Min Mat Mat Fac Fac Machines Disabled 8 | . . 1 2 . 2 3 Max in Single Turn 1 | . . 1 1 . 1 1 Garrison Access 3 | . . . . . 3 . Machines Sabotaged . | . . . . . . . Garrisons Compromised . | . . . . . . . Overloaded Fab Kills . | . . . . . . . Hacking | -11 -10 -10 -9 -8 -7 -6 --------- Run | Scr Mat Min Mat Mat Fac Fac Machines Accessed 44 | . 8 . 6 5 14 11 Terminals 26 | . 7 . 3 4 5 7 Fabricators 1 | . . . . . 1 . Repair Stations 5 | . . . . 1 3 1 Recycling Units 6 | . 1 . 2 . 2 1 Scanalyzers 3 | . . . 1 . 1 1 Garrison Access 3 | . . . . . 2 1 Total Hacks 122 | . 35 . 11 21 35 20 Successful 75 | . 23 . 5 16 19 12 Failed 46 | . 11 . 6 5 16 8 Catastrophic 4 | . . . . 1 1 2 Database Lockouts 1 | . 1 . . . . . Manual 44 | . 20 . 6 12 5 1 Terminals 79 | . 31 . 6 19 11 12 Fabricators 1 | . . . . . 1 . Repair Stations 14 | . . . . 2 11 1 Recycling Units 14 | . 4 . 3 . 6 1 Scanalyzers 8 | . . . 2 . 2 4 Garrison Access 6 | . . . . . 4 2 Terminal Hacks 33 | . 11 . 1 9 5 7 Part Schematic 5 | . 1 . . 2 1 1 Robot Analysis 1 | . 1 . . . . . Prototype ID Bank 4 | . 2 . . 2 . . Open DSF 7 | . . . . . 3 4 Level Access Points 1 | . 1 . . . . . Branch Access Points 1 | . 1 . . . . . Unreport Threat 3 | . . . 1 . . 2 Locate Traps 5 | . 2 . . 2 1 . Hauler Manifests 2 | . 1 . . 1 . . Registered Prototypes 1 | . . . . 1 . . Zone Layout 3 | . 2 . . 1 . . Fabricator Hacks . | . . . . . . . Repair Station Hacks 9 | . . . . 2 7 . Scan Component 5 | . . . . 1 4 . Repair 4 | . . . . 1 3 . Recycling Unit Hacks 5 | . 2 . 1 . 1 1 Report Inventory 4 | . 1 . 1 . 1 1 Retrieve Components 1 | . 1 . . . . . Scanalyzer 8 | . . . 2 . 2 4 Insert Component 5 | . . . 1 . 1 3 Analyze 3 | . . . 1 . 1 1 Garrison Access Hacks 2 | . . . . . 2 . Seal Access 2 | . . . . . 2 . Unauthorized Hacks 18 | . 10 . 1 5 2 . Terminals 14 | . 8 . 1 5 . . Track 9 | . 6 . 1 2 . . Botnet 4 | . 2 . . 2 . . Operators 1 | . . . . 1 . . Fabricators . | . . . . . . . Repair Stations . | . . . . . . . Recycling Units 4 | . 2 . . . 2 . Reject 1 | . 1 . . . . . Recyclers 2 | . 1 . . . 1 . Mask 1 | . . . . . 1 . Scanalyzers . | . . . . . . . Garrison Access . | . . . . . . . Data Cores Recovered . | . . . . . . . Used . | . . . . . . . Hacking Detections 34 | . 6 . 5 4 12 7 Full Trace Events 1 | . . . . . 1 . Feedback Events 1 | . . . . . 1 . Corruption 1 | . . . . . 1 . Feedback Blocked . | . . . . . . . Robot Schematics Acquired . | . . . . . . . Robots Built . | . . . . . . . Authchips . | . . . . . . . Time . | . . . . . . . Total Robot Build Rating . | . . . . . . . Part Schematics Acquired 8 | . 1 . 1 2 2 2 Parts Built . | . . . . . . . Authchips . | . . . . . . . Time . | . . . . . . . Total Part Build Rating . | . . . . . . . Parts Repaired 4 | . . . . 1 3 . Time 140 | . . . . 32 108 . Parts Recycled . | . . . . . . . Recycled Matter . | . . . . . . . Retrieved Matter . | . . . . . . . Retrieved Components 3 | . 3 . . . . . Parts Scanalyzed 3 | . . . 1 . 1 1 Part Schematics Acquired 3 | . . . 1 . 1 1 Parts Damaged . | . . . . . . . Bothacking | -11 -10 -10 -9 -8 -7 -6 ------------ Run | Scr Mat Min Mat Mat Fac Fac Used RIF Installer . | . . . . . . . Robots Hacked 4 | . 1 . 1 . 1 1 Non-combat 4 | . 1 . 1 . 1 1 Combat . | . . . . . . . Robot Hacks Applied 8 | . 1 . 2 . 1 4 parse_system 1 | . . . . . . 1 no_distress 4 | . 1 . 1 . 1 1 find_fabricator 1 | . . . . . . 1 find_dsf 1 | . . . . . . 1 check_alert 1 | . . . 1 . . . Relay Couplers Released 1 | . . . . . 1 . Machine Destruction 1 | . . . . . 1 . Robots Rewired . | . . . . . . . Allies Hacked . | . . . . . . . Hacks Repelled . | . . . . . . . Allies | -11 -10 -10 -9 -8 -7 -6 -------- Run | Scr Mat Min Mat Mat Fac Fac Total Allies 2 | . . 2 . . . . Largest Group 2 | . . 2 1 . . . Highest-Rated Group 45 | . . 45 31 . . . Highest-Rated Ally 31 | . . 31 31 . . . Total Orders . | . . . . . . . Ally Attacks 14 | . . 10 4 . . . Total Damage 230 | . . 188 42 . . . Kills 3 | . . 2 1 . . . Allies Corrupted . | . . . . . . . Allies Melted . | . . . . . . . Intel | -11 -10 -10 -9 -8 -7 -6 ------- Run | Scr Mat Min Mat Mat Fac Fac Robot Analysis Total 1 | . 1 . . . . . Derelict Logs Recovered 2 | . . 2 . . . . Drone Launches . | . . . . . . . Drone Recoveries . | . . . . . . . Exploration | -11 -10 -10 -9 -8 -7 -6 ------------- Run | Scr Mat Min Mat Mat Fac Fac Turns Passed 9268 | 75 1193 822 1329 688 2717 2444 Spaces Moved 4800 | 52 726 430 644 392 1363 1193 Core 2 | 2 . . . . . . Treads 4369 | . 347 430 644 392 1363 1193 Legs 429 | 50 379 . . . . . Wheels . | . . . . . . . Hover . | . . . . . . . Flight . | . . . . . . . Fastest Speed 50 | 50 120 160 160 160 160 168 Average Speed 160 | 117 139 160 160 160 166 169 Slowest Speed 190 | 120 190 160 160 160 170 170 Overloaded Moves . | . . . . . . . Propulsion Burnouts . | . . . . . . . Robots Hopped . | . . . . . . . Cave-ins Triggered . | . . . . . . . Exploration Rate (%) 48 | 4 94 78 61 36 38 26 Regions Visited 6 Branch Regions 1 Pre-discovered Areas 2 | . . 2 . . . . Known Exits Taken 2 | . 1 1 . . . . Unknown Exits Taken 4 | 1 . . 1 1 1 . Scrap Searched . | . . . . . . . Spaces Dug 51 | . 9 . 11 . 10 21 Terrain Destroyed 179 | . 9 . 43 17 61 49 Melee 48 | . 9 . 11 . 8 20 Projectile 36 | . . . . . 20 16 AOE 95 | . . . 32 17 33 13 Terrain Rammed . | . . . . . . . Walls Destroyed . | . . . . . . . Machines Disabled . | . . . . . . . Actions | -11 -10 -10 -9 -8 -7 -6 --------- Run | Scr Mat Min Mat Mat Fac Fac Total 5699 | 63 843 501 827 429 1637 1399 Wait 196 | . 21 22 48 . 78 27 Move 4794 | 51 725 429 643 391 1362 1193 Hop . | . . . . . . . Pick Up 84 | 6 19 3 18 7 20 11 Fast Attach 33 | 6 4 2 4 2 11 4 Attach 19 | . 1 . 2 2 6 8 Detach 2 | . 1 . . 1 . . Swap 101 | . 16 6 21 3 35 20 Drop 104 | . 16 7 22 7 37 15 Fire 276 | . 19 32 48 16 76 85 Melee 90 | . 21 . 21 . 12 36 Ram . | . . . . . . . Kick . | . . . . . . . Crush . | . . . . . . . Escape Stasis . | . . . . . . . Rewire . | . . . . . . . Trap . | . . . . . . . Miscellaneous . | . . . . . . . Route ------- -11/Scrapyard -10/Materials (discovered 5 exits: *Mat x3 / *Min x2) -10/Mines (discovered 2 exits: *Mat x2) -9/Materials (discovered 3 exits: *Mat x2 / [*Min]) -8/Materials (discovered 3 exits: *Fac / [*Sto x2]) -7/Factory (discovered 3 exits: *Fac x3) -6/Factory (discovered 4 exits: [*Fac x2] / [*Low x2]) History --------- Turn | Location | Event 4 | -11/Scrapyard | Discovered new exit (range 16) 76 | -11/Scrapyard | Entered Materials 232 | -10/Materials | Discovered new exit (range 8) 274 | -10/Materials | Identified exit to Materials 308 | -10/Materials | Build established: Mutant 559 | -10/Materials | Identified exit to Mines 1240 | -10/Materials | Central database locked down 1269 | -10/Materials | Entered Mines 1584 | -10/Mines | Discovered exit to Materials (range 3) 1838 | -10/Mines | Learned location of Storage (-8) 1890 | -10/Mines | Learned Materials stockpile data 2033 | -10/Mines | Discovered exit to Materials (range 5) 2091 | -10/Mines | Entered Materials 2091 | -9/Materials | Accompanied by 1 ally 2091 | -9/Materials | Evolved 2 slots: Propulsion x1, Utility x1 2096 | -9/Materials | Led the pair of lost Derelicts to an unsafe place 2444 | -9/Materials | Discovered new exit (range 6) 3069 | -9/Materials | Discovered new exit (range 8) 3168 | -9/Materials | Build established: Scavenger-Mutant 3404 | -9/Materials | Discovered new exit (range 3) 3420 | -9/Materials | Entered another Materials area 3420 | -8/Materials | Evolved 2 slots: Propulsion x1, Utility x1 3541 | -8/Materials | Discovered new exit (range 15) 3640 | -8/Materials | Destroyed 7 combat bots 3680 | -8/Materials | Repaired Rocket Launcher? 3774 | -8/Materials | Discovered new exit (range 4) 3906 | -8/Materials | Discovered new exit (range 8) 3958 | -8/Materials | Garrison activated, responded to threat 4031 | -8/Materials | Build established: Mutant 4108 | -8/Materials | Entered Factory 4108 | -7/Factory | Evolved 2 slots: Utility x1, Weapon x1 4162 | -7/Factory | Discovered new exit (range 13) 4434 | -7/Factory | Build established: Tank 4588 | -7/Factory | Repaired Broken Imp. Treads 4626 | -7/Factory | Repaired Imp. Treads 4963 | -7/Factory | Discovered new exit (range 4) 4981 | -7/Factory | Cargo convoy interrupted 5482 | -7/Factory | Repaired Cooling System 5658 | -7/Factory | Build established: Scavenger-Gunner 6717 | -7/Factory | Discovered new exit (range 6) 6825 | -7/Factory | Entered another Factory area 6825 | -6/Factory | Evolved 2 slots: Propulsion x1, Utility x1 7068 | -6/Factory | Discovered new exit (range 15) 7082 | -6/Factory | Destroyed 7 combat bots 7380 | -6/Factory | Build established: Scavenger-Tank 7717 | -6/Factory | Discovered new exit (range 6) 8007 | -6/Factory | Discovered new exit (range 11) 8348 | -6/Factory | Discovered new exit (range 4) 9039 | -6/Factory | Build established: Mutant 9230 | -6/Factory | Cargo convoy interrupted 9235 | -6/Factory | Garrison activated, responded to threat 9269 | -6/Factory | Self-destructed Last Messages --------------- 09257_ System corrupted: Energy discharge (-12). 09259_ P-60 Hacker destroyed. 09259_ Slug penetrates Wall. 09259_ Cld. Particle Cannon destroyed. 09259_ Slug penetrates Wall. 09262_ Acquired 35 matter. 09264_ K-01 Serf collects debris. 09265_ Penetrated by Slug. 09265_ Arm. Treads destroyed. 09265_ Penetrated by Slug. 09266_ Wall collapses. 09266_ U-05 Engineer builds a Wall. 09267_ K-01 Serf collects debris. 09267_ Arm. Treads destroyed. 09268_ Penetrated by Slug. 09268_ Cold Fusion Reactor destroyed. 09268_ Penetrated by Slug. 09268_ Slug penetrates Wall. 09268_ Penetrated by Slug. 09268_ Hvy. Ion Cannon destroyed. Map ----- +----------------------------------------------------+ | ?????????????????????????????????????????????????? | | ?????????????????????????????????????????????????? | | ?????????????????????????????????????????????????? | | ?????????????????????????????????????????????????? | | ?????????????????????????????????????????????????? | | ?????????????????????????????????????????????????? | | ?????????????????????????????????????????????????? | | ?????????????????????????????????????????????????? | | ?????????????????????????????????????????????????? | | ?????????????????????????????????????????????????? | | ?????????????????????????????????????????????????? | | ?????????????????????????????????????????????????? | | ?????????????????????"" ????????????????????????? | | ????????????????? ? ????????????????????????? | | ?????????????????? ????????????????????????? | | ?????????????????? ????????????????????????? | | ??????????????????# ????????????????????????? | | ??????????????????# ????????????????????????? | | ??????????????????#[[[ ????????????????????????? | | ??????????????????#[[[ ????????????????????????? | | ??????????????????#[[ ????????????????????????? | | ??????????????????# ????????????????????????? | | ??????????????????#! ????????????????????????? | | ??????????????????# != ##############???????????? | | ??????????????????# %!!#!!% #???????????? | | ?? ????????######## !kk[;@%!! #???????????? | | ??? ????? xg%Yx HH!h!u/= *!= #???????????? | | ???? ????????######g|kYh;!*!""" """ #???????????? | | ???? ????????????# ==%h;[=[""" """ #???????????? | | ???###/######?????# %!!%#%[[""" """ #???????????? | | ???# #????# =*![#! #???????????? | | ???# ?????# =!%# """ """ #???????????? | | ???# "" "" ?????## # """ """ #???????????? | | ???? ""G"? ???? #% # """ """ #???????????? | | ?????##############% # #???????????? | | ?????# # #* #???????????? | | ?????# # ##############???????????? | | ????## # #????????????????????????? | | ????## % # #????????????????????????? | | ????## % # #????????????????????????? | | ?????# """ " %+% #????????????????????????? | | ?????# """ """ #% #????????????????????????? | | ?????# """ """ #% #????????????????????????? | | ?????# "" "" # #????????????????????????? | | ?????# "" "" # #????????????????????????? | | ????## = # #????????????????????????? | | ?????# % % # #????????????????????????? | | ?????############## +????????????????????????? | | ??????????????????# # ???????????????????????? | | ??????????????????# # ??????????????????????? | +----------------------------------------------------+ Best States ------------- Heat Dissipation 64 Energy Generation 18 Energy Capacity 290 Matter Stores 300 Matter Capacity 300 Sight Range 16 Terrain Scan Density 10 Armor Coverage 825 Resistance: KI 40 Resistance: TH 40 Resistance: EX 20 Resistance: EM 20 Resistance: I 20 Resistance: S 20 Resistance: P 20 Weapon Cycling 15 Evasion (%) 55 Target Analysis 5 Core Analysis 6 Recoil Reduction 5 Offensive Hacking 10 Authchip Count 1 Item Schematics ----------------- Lrg. Storage Unit | -10/Materials | Hacked Huge Storage Unit | -9/Materials | Scanalyzed Cooling System | -8/Materials | Hacked Arm. Treads | -8/Materials | Hacked Arm. Huge Wheel | -7/Factory | Hacked Core Analyzer | -7/Factory | Scanalyzed Enh. Optical Array | -6/Factory | Hacked Imp. Cooling System | -6/Factory | Scanalyzed Robot Schematics ------------------ None Fabricated ------------ Nothing Alien Tech Used ----------------- None Achievements -------------- None Challenges ------------ None Game ------ Seed RefineryCryofiberSteel Manual? 0 Play Time 01:58:09 Cumulative 154.5 hours Start 2021.10.22 @ 21:09:24 End 2021.10.26 @ 21:10:23 Sessions 3 Manual Loads 0 Difficulty Adventurer Special Mode None Game No. 108 Rogue 49 Adventurer 38 Explorer 21 Win Type - Total 7 Types 6/0/0/1/0/0/0/0/0 Lore% 74 Gallery% 70 Achievement% 63 Wizard Run 0 Options --------- ASCII 0 Keyboard 1 Movement Arrows Keybinds 0 Fullscreen 2 Font 12/Terminus Map View 83x54 Tactical HUD 1 Map Filters NONE Filters NONE Steam 1 RUN: 6274a6eb-4952-4ab8-a6b9-336258f08c1b